Cogmind - Beta 9.6 @@@ ROGUE MODE // 2020.08.21 @ 23:29:59 Player: Cracklepappy Result: Destroyed by Y-45 Defender with Heavy Assault Rifle Performance ------------- Evolutions (1) 500 Regions Visited (2) 400 Robots Destroyed (6) 30 Value Destroyed (35) 35 Prototype IDs (0) 0 Alien Tech Used (0) 0 Bonus (0) 0 TOTAL SCORE: 965 Bonus ------- None Cogmind --------- Core Integrity 0/400 Matter 290/300 Energy 99/100 System Corruption 0% Temperature Cool (18) Movement Core (50) Location -9/Materials Parts ------- > --- POWER (1) -------- (None) > --- PROPULSION (2) --- (None) > --- UTILITY (4) ------ (None) > --- WEAPON (2) ------- (None) > --- INVENTORY (4) ---- Light Ion Engine Improved Terrain Scanner Light Assault Rifle Grenade Launcher Peak State ------------ > --- POWER ------------ Light Ion Engine > --- PROPULSION ------- (None) > --- UTILITY ---------- Small Storage Unit > --- WEAPON ----------- Assault Rifle Light Assault Rifle > --- INVENTORY -------- Small Matter Pod Improved Terrain Scanner Seismic Analyzer EM Pulse Gun Mining Laser [Rating: 4] Favorites ----------- Power Light Ion Engine Engine Light Ion Engine Propulsion None Utility Small Storage Unit Storage Small Storage Unit Weapon Light Assault Rifle Ballistic Gun Light Assault Rifle Special Weapon Mining Laser Build | -11 -10 -9 ------- Run | Scr Mat Mat Slots Evolved 2 | . . 2 Power . | . . . Propulsion . | . . . Utility 2 | . . 2 Weapon . | . . . Parts Attached 6 | 5 . 1 Power 1 | 1 . . Engine 1 | 1 . . Core . | . . . Reactor . | . . . Propulsion . | . . . Treads . | . . . Leg . | . . . Wheel . | . . . Hover . | . . . Flight . | . . . Utility 1 | 1 . . Device . | . . . Storage 1 | 1 . . Processor . | . . . Hackware . | . . . Protection . | . . . Artifact . | . . . Weapon 4 | 3 . 1 Energy Gun . | . . . Energy Cannon . | . . . Ballistic Gun 3 | 3 . . Ballistic Cannon . | . . . Launcher . | . . . Special Weapon 1 | . . 1 Impact Weapon . | . . . Slashing Weapon . | . . . Piercing Weapon . | . . . Special Melee Weapon . | . . . Unidentified Prototypes . | . . . Parts Lost 2 | . . 2 Power . | . . . Propulsion . | . . . Utility 1 | . . 1 Weapon 1 | . . 1 Highest Loss Streak 1 | . . 1 Average Slot Usage (%) 21 | . 28 18 Storage 12 | . 14 11 Ballistic Gun 5 | . 14 . Special Weapon 4 | . . 7 Naked Turns . | . . . Heaviest Build 7 | 7 5 5 Greatest Support 3 | 3 3 3 Greatest Overweight (x) 2 | 2 1 1 Average Overweight (x) 1 | 1 1 1 Largest Inventory Capacity 6 | 6 6 6 Average Capacity 5 | 5 6 6 Most Carried 6 | 6 6 6 Average Carried 5 | 4 5 5 Final Capacity 6 | 6 6 4 Final Carried 6 | 6 6 4 Class Distribution -------------------- 100% | Mutant Dominant Class ---------------- Mutant | -10/Materials Mutant | -9/Materials Resources | -11 -10 -9 ----------- Run | Scr Mat Mat Matter Collected 317 | 317 . . Remotely . | . . . Salvage Created 190 | 190 . . Parts 9 | 9 . . Haulers Intercepted . | . . . Recyclers Shooed . | . . . Parts Field Recycled . | . . . Retrieved Matter . | . . . Parts Self-Destructed . | . . . Prevented . | . . . Kills | -11 -10 -9 ------- Run | Scr Mat Mat Combat Hostiles Destroyed . | . . . Classes Destroyed 3 | 3 . . Worker 1 | 1 . . Tunneler 4 | 4 . . Recycler 1 | 1 . . Best Kill Streak 3 | 3 . . Combat Bots Only . | . . . Max Kills in Single Turn 1 | 1 . . Gunslinging . | . . . Exploded . | . . . Melee . | . . . Uniques/NPCs Destroyed . | . . . Combat | -11 -10 -9 -------- Run | Scr Mat Mat Damage Taken 595 | . . 595 Core 407 | . . 407 Absorbed by Shields . | . . . Core Remaining (%) 100 | 100 100 . Volleys Fired 14 | 11 . 3 Largest 2 | 2 . 1 Hottest 100 | 40 . 100 Shots Fired 25 | 22 . 3 Gun 22 | 22 . . Cannon . | . . . Launcher . | . . . Special 3 | . . 3 Kinetic 22 | 22 . . Thermal 3 | . . 3 Explosive . | . . . Electromagnetic . | . . . Robot Hit Streak 8 | 8 . . Robot Miss Streak 3 | 3 . . Penetration Max . | . . . Secondary Targets . | . . . Shots Hit Robots 12 | 12 . . Core Hits 8 | 8 . . Critical Hits . | . . . Critical Kills . | . . . Critical Parts Destroyed . | . . . Melee Attacks . | . . . Impact . | . . . Slashing . | . . . Piercing . | . . . Sneak Attacks . | . . . Combat Hostiles . | . . . Follow-up Attacks . | . . . Damage Inflicted 165 | 165 . . Guns 165 | 165 . . Cannons . | . . . Explosions . | . . . Melee . | . . . Ramming . | . . . Kinetic 165 | 165 . . Thermal . | . . . Explosive . | . . . Electromagnetic . | . . . Impact . | . . . Slashing . | . . . Piercing . | . . . Highest Corruption . | . . . Average Corruption . | . . . Corruption Purged . | . . . Overload Shots . | . . . Overflow Damage . | . . . Projectiles . | . . . Explosions . | . . . Melee . | . . . Knockbacks . | . . . Impact . | . . . Kinetic . | . . . Secondary . | . . . Self-Inflicted Damage . | . . . Shots . | . . . Rammed . | . . . Targets Rammed . | . . . Kicked . | . . . Crushed . | . . . Highest Temperature 6 | . . 6 Average Temperature 6 | . . 6 Received Heat Transfer 213 | . . 213 Siege Activations . | . . . Robots Corrupted . | . . . Combat Hostiles . | . . . Parts Fried . | . . . Impact Corruptions . | . . . Robots Melted . | . . . Combat Hostiles . | . . . Parts Melted . | . . . Heat Transferred . | . . . Parts Sabotaged . | . . . Parts Stolen . | . . . Parts Stripped . | . . . Power Chain Reactions . | . . . Missiles Intercepted . | . . . Alert | -11 -10 -9 ------- Run | Scr Mat Mat Peak Influence 49 | 30 35 49 Average Influence 22 | 16 26 29 Maximum Alert Level . | . . . Low Security (%) 100 | 100 100 100 Level 1 . | . . . Level 2 . | . . . Level 3 . | . . . Level 4 . | . . . Level 5 . | . . . High Security . | . . . Max Security . | . . . Squads Dispatched 1 | . . 1 Investigation . | . . . Extermination . | . . . Reinforcement 1 | . . 1 Assault . | . . . Garrison . | . . . Intercept . | . . . Construction Impeded . | . . . Haulers Reinforced . | . . . Stealth | -11 -10 -9 --------- Run | Scr Mat Mat Distress Signals 1 | . . 1 Communications Jammed . | . . . Distress Signals . | . . . Times Spotted 8 | . 1 7 Peak Tracking Total 6 | . 2 6 Tactical Retreats . | . . . Traps | -11 -10 -9 ------- Run | Scr Mat Mat Traps Triggered . | . . . Indirectly . | . . . Trap Hack Attempts . | . . . Triggered . | . . . Disarmed . | . . . Reprogrammed . | . . . Reused . | . . . Traps Extracted . | . . . Installed . | . . . Triggered . | . . . Machines | -11 -10 -9 ---------- Run | Scr Mat Mat Machines Disabled . | . . . Max in Single Turn . | . . . Machines Sabotaged . | . . . Garrisons Compromised . | . . . Overloaded Fab Kills . | . . . Fab Network Shutdowns . | . . . Hacking | -11 -10 -9 --------- Run | Scr Mat Mat Machines Accessed 1 | . 1 . Terminals 1 | . 1 . Fabricators . | . . . Repair Stations . | . . . Recycling Units . | . . . Scanalyzers . | . . . Garrison Access . | . . . Total Hacks 2 | . 2 . Successful 2 | . 2 . Failed . | . . . Catastrophic . | . . . Database Lockouts . | . . . Manual 1 | . 1 . Terminals 2 | . 2 . Fabricators . | . . . Repair Stations . | . . . Recycling Units . | . . . Scanalyzers . | . . . Garrison Access . | . . . Terminal Hacks 2 | . 2 . Level Access Points 1 | . 1 . Branch Access Points 1 | . 1 . Fabricator Hacks . | . . . Repair Station Hacks . | . . . Recycling Unit Hacks . | . . . Scanalyzer . | . . . Garrison Access Hacks . | . . . Unauthorized Hacks . | . . . Terminals . | . . . Fabricators . | . . . Repair Stations . | . . . Recycling Units . | . . . Scanalyzers . | . . . Garrison Access . | . . . Data Cores Recovered . | . . . Used . | . . . Hacking Detections 1 | . 1 . Full Trace Events . | . . . Feedback Events . | . . . Feedback Blocked . | . . . Robot Schematics Acquired . | . . . Robots Built . | . . . Matter . | . . . Time . | . . . Total Robot Build Rating . | . . . Part Schematics Acquired . | . . . Parts Built . | . . . Matter . | . . . Time . | . . . Total Part Build Rating . | . . . Parts Repaired . | . . . Time . | . . . Parts Recycled . | . . . Recycled Matter . | . . . Retrieved Matter . | . . . Retrieved Components . | . . . Parts Scanalyzed . | . . . Part Schematics Acquired . | . . . Parts Damaged . | . . . Bothacking | -11 -10 -9 ------------ Run | Scr Mat Mat Used RIF Installer . | . . . Robots Hacked . | . . . Non-combat . | . . . Combat . | . . . Robot Hacks Applied . | . . . Relay Couplers Released . | . . . Robots Rewired . | . . . Allies Hacked . | . . . Hacks Repelled . | . . . Allies | -11 -10 -9 -------- Run | Scr Mat Mat Total Allies . | . . . Largest Group . | . . . Highest-Rated Group . | . . . Highest-Rated Ally . | . . . Total Orders . | . . . Ally Attacks . | . . . Total Damage . | . . . Kills . | . . . Allies Corrupted . | . . . Allies Melted . | . . . Intel | -11 -10 -9 ------- Run | Scr Mat Mat Robot Analysis Total . | . . . Derelict Logs Recovered . | . . . Drone Launches . | . . . Drone Recoveries . | . . . Exploration | -11 -10 -9 ------------- Run | Scr Mat Mat Turns Passed 464 | 254 73 137 Spaces Moved 352 | 157 72 123 Core 352 | 157 72 123 Treads . | . . . Legs . | . . . Wheels . | . . . Hover . | . . . Flight . | . . . Fastest Speed 50 | 50 100 100 Average Speed 113 | 131 100 100 Slowest Speed 150 | 150 100 100 Overloaded Moves . | . . . Propulsion Burnouts . | . . . Robots Hopped . | . . . Cave-ins Triggered . | . . . Exploration Rate (%) 15 | 8 20 18 Regions Visited 2 Branch Regions . Pre-discovered Areas . | . . . Known Exits Taken 1 | . 1 . Unknown Exits Taken 1 | 1 . . Scrap Searched . | . . . Spaces Dug 3 | . . 3 Terrain Destroyed 3 | . . 3 Melee . | . . . Projectile 3 | . . 3 AOE . | . . . Actions | -11 -10 -9 --------- Run | Scr Mat Mat Total 388 | 186 73 129 Wait 1 | . . 1 Move 350 | 156 71 123 Hop . | . . . Pick Up 11 | 10 1 . Fast Attach 2 | 2 . . Attach 4 | 3 . 1 Detach 1 | . . 1 Swap . | . . . Drop 5 | 4 1 . Fire 14 | 11 . 3 Melee . | . . . Ram . | . . . Kick . | . . . Crush . | . . . Escape Stasis . | . . . Rewire . | . . . Trap . | . . . Miscellaneous . | . . . Route ------- -11/Scrapyard -10/Materials (discovered 5 exits: *Mat x3 / Min x2) -9/Materials (discovered 1 exit: [*Mat]) History --------- Turn | Location | Event 6 | -11/Scrapyard | Discovered new exit (range 15) 255 | -11/Scrapyard | Entered Materials 294 | -10/Materials | Identified exit to Mines 294 | -10/Materials | Identified exit to Materials 328 | -10/Materials | Entered another Materials area 328 | -9/Materials | Evolved 2 slots: Utility x2 332 | -9/Materials | Build established: Mutant 433 | -9/Materials | Core integrity fell below 50% 447 | -9/Materials | Core integrity fell below 20% 460 | -9/Materials | Discovered new exit (range 9) 465 | -9/Materials | Destroyed by Y-45 Defender with Heavy Assault Rifle Last Messages --------------- PARAMETERS=UTILITY_2 LOCATION=MATERIALS GOAL=ESCAPE 00351_ K-01 Serf collects debris. 00372_ U-05 Engineer builds a Wall. 00399_ K-01 Serf collects debris. 00399_ O-16 Technician sends out distress signal. 00399_ O-16 Technician: "IFF HANDSHAKE FAILED. SECURING TERMINAL." 00404_ ALERT: Hostiles spotted, dispatching reinforcements to Terminal M006. 00409_ K-01 Serf collects debris. 00411_ U-05 Engineer builds a Door. 00416_ K-01 Serf collects debris. 00420_ K-01 Serf cleans the Material Processor. 00422_ Mining Laser destroyed. 00423_ U-05 Engineer builds a Wall. 00424_ K-01 Serf collects debris. 00426_ K-01 Serf cleans the Material Processor. 00460_ EXIT=FOUND 00465_ Sml. Storage Unit destroyed. Map ----- +----------------------------------------------------+ | ????????????? ?# """ ######## #""""" #? | | ????????????? ?# """"" # # """ #? | | ????????????? ?# """"" + + #? | | ??????????### ?# """"" # # = #? | | ??????????+ ## """ # ## ###########? | | ??????????# ## # ####/#####????????? | | ??????????# ## ! # + #????????? | | ??????????+ ############ ##### "" #????????? | | ??????????# #???###????# #???# """#????????? | | ??????????# #??????????# #???# S"#????????? | | ???#?????## ##?????##### #???# #????????? | | ??## ##### ####### #???# """ #????????? | | ??# #???# ! """ #????????? | | ??+ #???# """ #????????? | | ??# #???# #????????? | | ???????### ####### #???########??????????? | | ????????####/########## ##?????????????????????? | | ????????# T #YYY#??????????????????????? | | ????????# """ """ # #??????????????????????? | | ????????# """ """ + #??????????????????????? | | ????????# """ """ # #??????????????????????? | | ????????# # o#??????????????????????? | | ????????# # #??????????????????????? | | ????????########## #### #??????????????????????? | | ?????????????????###??# #??????????????????????? | | ??????????????????????# @#??????????????????????? | | ??????????????????????# !+??????????????????????? | | ??????????????????????# #??????????????????????? | | ??????????????????????# < #??????????????????????? | | ??????????????????????# #??????????????????????? | | ??????????????????????#####??????????????????????? | | ?????????????????????????????????????????????????? | | ?????????????????????????????????????????????????? | | ?????????????????????????????????????????????????? | | ?????????????????????????????????????????????????? | | ?????????????????????????????????????????????????? | | ?????????????????????????????????????????????????? | | ?????????????????????????????????????????????????? | | ?????????????????????????????????????????????????? | | ?????????????????????????????????????????????????? | | ?????????????????????????????????????????????????? | | ?????????????????????????????????????????????????? | | ?????????????????????????????????????????????????? | | | | | | | | | | | | | | | +----------------------------------------------------+ Best States ------------- Heat Dissipation 28 Energy Generation 5 Energy Capacity 100 Matter Stores 300 Matter Capacity 300 Sight Range 16 Terrain Scan Density 10 Evasion (%) 40 Item Schematics ----------------- None Robot Schematics ------------------ None Fabricated ------------ Nothing Alien Tech Used ----------------- None Achievements -------------- None Challenges ------------ None Game ------ Seed IonXenonEdition Manual? 0 Play Time 00:07:40 Cumulative 109.3 hours Start 2020.08.21 @ 23:23:16 End 2020.08.21 @ 23:29:59 Sessions 1 Manual Loads 0 Difficulty Rogue Special Mode None Game No. 137 Rogue 137 Adventurer 0 Explorer 0 Win Type - Total 1 Types 1/0/0/0/0/0/0 Lore% 49 Gallery% 61 Achievement% 45 Wizard Run 0 Options --------- ASCII 0 Keyboard 0 Movement Numpad Keybinds 0 Fullscreen 2 Font 24/Smallcaps Map View 76x50 Tactical HUD 1 Map Filters NONE Filters NONE Steam 1 RUN: b5231a41-6097-41f4-8b60-ad2c64c78f48